fUSD/lending_fUSD_20240214
["ID","MTS","AMOUNT","RATE_DAILY","PERIOD"]
[314003899,1707922261215,-520.44,0.00036986,2]
[314003900,1707922261226,-1671.0,0.00036986,2]
[314003901,1707922261236,-1136.03,0.00036986,2]
[314003902,1707922261247,-811.5,0.00036986,2]
[314003903,1707922261258,-4964.52,0.00036986,2]
[314003904,1707922261268,-1015.7,0.00036986,2]
[314003905,1707922261277,-231.91297466,0.00036986,2]
[314003906,1707922261288,-695.89,0.00036986,2]
[314003907,1707922261299,-989.66,0.00036986,2]
[314003908,1707922261309,-500.0,0.00036986,2]
[314003909,1707922261319,-500.0,0.00036986,2]
[314003910,1707922261330,-500.0,0.00036986,2]
[314003911,1707922261341,-880.3,0.00036986,2]
[314003912,1707922261352,-4391.07,0.00036986,2]
[314003913,1707922261363,-500.0,0.00036986,2]
[314003914,1707922261373,-688.22,0.00036986,2]
[314003915,1707922261383,-2408.6,0.00036986,2]
[314003916,1707922261393,-500.0,0.00036986,2]
[314003917,1707922261402,-4370.3,0.00036986,2]
[314003918,1707922261413,-500.0,0.00036986,2]
[314003919,1707922261425,-874.31,0.00036986,2]
[314003920,1707922261435,-500.0,0.00036986,2]
[314003921,1707922261445,-1058.08,0.00036986,2]
[314003922,1707922261456,-623.37,0.00036986,2]
[314003923,1707922261465,-500.0,0.00036986,2]
[314003924,1707922261476,-3010.04,0.00036986,2]
[314003925,1707922261485,-500.0,0.00036986,2]
[314003926,1707922261495,-1122.83,0.00036986,2]
[314003927,1707922261504,-5573.69,0.00036986,2]
[314003928,1707922261514,-568.49532274,0.00036986,2]
[314003929,1707922261524,-1101.53,0.00036986,2]
[314003930,1707922261536,-752.74,0.00036986,2]
[314003931,1707922261545,-633.26,0.00036986,2]
[314003932,1707922261554,-500.0,0.00036986,2]
[314003933,1707922261564,-552.88,0.00036986,2]
[314003934,1707922261574,-765.76,0.00036986,2]
[314003935,1707922261583,-1402.76,0.00036986,2]
[314003936,1707922261593,-500.0,0.00036986,2]
[314003937,1707922261603,-870.49,0.00036986,2]
[314003938,1707922261613,-157.28594499,0.00036986,2]
[314003939,1707922261623,-1879.75,0.00036986,2]
[314003940,1707922261634,-500.0,0.00036986,2]
[314003941,1707922261643,-744.29,0.00036986,2]
[314003942,1707922261654,-500.0,0.00036986,2]
[314003943,1707922261664,-4876.05,0.00036986,2]
[314003944,1707922261674,-500.0,0.00036986,2]
[314003945,1707922261683,-2192.38,0.00036986,2]
[314003946,1707922261693,-2960.59,0.00036986,2]
[314003947,1707922261702,-500.0,0.00036986,2]
[314003948,1707922261713,-500.0,0.00036986,2]
[314003949,1707922261875,-5945.41,0.00036986,2]
[314003950,1707922261886,-500.0,0.00036986,2]
[314003951,1707922261898,-752.65,0.00036986,2]
[314003952,1707922261908,-841.56,0.00036986,2]
[314003953,1707922261917,-808.42,0.00036986,2]
[314003954,1707922261927,-12165.71,0.00036986,2]
[314003955,1707922261936,-1561.4,0.00036986,2]
[314003956,1707922261946,-500.0,0.00036986,2]
[314003957,1707922261956,-500.0,0.00036986,2]
[314003958,1707922261966,-6638.86,0.00036986,2]
[314003959,1707922261975,-500.0,0.00036986,2]
[314003960,1707922261984,-502.27,0.00036986,2]
[314003961,1707922261993,-1023.94,0.00036986,2]
[314003962,1707922262003,-500.0,0.00036986,2]
[314003963,1707922262012,-500.0,0.00036986,2]
[314003964,1707922262021,-15162.16,0.00036986,2]
[314003965,1707922262030,-1022.37,0.00036986,2]
[314003966,1707922262042,-500.0,0.00036986,2]
[314003967,1707922262051,-693.17,0.00036986,2]
[314003968,1707922262060,-500.0,0.00036986,2]
[314003969,1707922262069,-500.0,0.00036986,2]
[314003970,1707922262077,-3780.51,0.00036986,2]
[314003971,1707922262087,-1715.92,0.00036986,2]
[314003972,1707922262096,-500.0,0.00036986,2]
[314003973,1707922262105,-500.0,0.00036986,2]
[314003974,1707922262115,-955.23,0.00036986,2]
[314003975,1707922262124,-1097.9,0.00036986,2]
[314003976,1707922262133,-1241.96,0.00036986,2]
[314003977,1707922262141,-500.0,0.00036986,2]
[314003978,1707922262151,-500.0,0.00036986,2]
[314003979,1707922262161,-500.0,0.00036986,2]
[314003980,1707922262171,-500.0,0.00036986,2]
[314003981,1707922262180,-741.56,0.00036986,2]
[314003982,1707922262189,-1031.21,0.00036986,2]
[314003983,1707922262199,-3528.08,0.00036986,2]
[314003984,1707922262208,-989.74,0.00036986,2]
[314003985,1707922262217,-2966.06,0.00036986,2]
[314003986,1707922262226,-1787.69,0.00036986,2]
[314003987,1707922262236,-694.94,0.00036986,2]
[314003988,1707922262246,-2172.67,0.00036986,2]
[314003989,1707922262255,-1067.74,0.00036986,2]
[314003990,1707922262265,-708.87,0.00036986,2]
[314003991,1707922262274,-899.23,0.00036986,2]
[314003992,1707922262283,-904.07,0.00036986,2]
[314003993,1707922262293,-500.0,0.00036986,2]
[314003994,1707922262304,-872.86,0.00036986,2]
[314003995,1707922262313,-1286.3,0.00036986,2]
[314003996,1707922262323,-3563.63,0.00036986,2]
[314003997,1707922262332,-1685.99,0.00036986,2]
[314003998,1707922262342,-1587.05,0.00036986,7]
[314003999,1707922262351,-567.05,0.00036986,2]
[314004000,1707922262362,-708.41,0.00036986,2]
[314004001,1707922262372,-1475.43,0.00036986,2]
[314004002,1707922262382,-1127.39,0.00036986,2]
[314004003,1707922262391,-469.49467046,0.00036986,2]
[314004004,1707922262400,-1006.29,0.00036986,2]
[314004005,1707922262409,-500.0,0.00036986,2]
[314004006,1707922262418,-920.07,0.00036986,2]
[314004007,1707922262428,-16709.33,0.00036986,2]
[314004008,1707922262437,-686.19,0.00036986,2]
[314004009,1707922262446,-1444.13,0.00036986,2]
[314004010,1707922262455,-214.98739013,0.00036986,2]
[314004011,1707922262464,-1341.48,0.00036986,2]
[314004012,1707922262473,-1215.93,0.00036986,2]
[314004013,1707922262483,-500.0,0.00036986,2]
[314004014,1707922262492,-1224.32,0.00036986,2]
[314004015,1707922262502,-500.0,0.00036986,2]
[314004016,1707922262511,-500.0,0.00036986,2]
[314004017,1707922262520,-500.0,0.00036986,2]
[314004018,1707922262530,-861.83,0.00036986,2]
[314004019,1707922262539,-3422.9,0.00036986,2]
[314004020,1707922262549,-3172.01,0.00036986,2]
[314004021,1707922262560,-803.53,0.00036986,2]
[314004022,1707922262569,-847.09,0.00036986,2]
[314004023,1707922262578,-1768.97,0.00036986,2]
[314004024,1707922262587,-833.17,0.00036986,2]
[314004025,1707922262596,-500.0,0.00036986,2]
[314004026,1707922262605,-1024.62,0.00036986,2]
[314004027,1707922262616,-500.0,0.00036986,2]
[314004028,1707922262625,-500.0,0.00036986,2]
[314004029,1707922262638,-500.0,0.00036986,2]
[314004030,1707922262647,-2141.31,0.00036986,2]
[314004031,1707922262656,-893.62,0.00036986,2]
[314004032,1707922262666,-500.0,0.00036986,2]
[314004033,1707922262677,-500.0,0.00036986,2]
[314004034,1707922262688,-1291.35,0.00036986,2]
[314004035,1707922262697,-761.24,0.00036986,2]
[314004036,1707922262711,-888.4,0.00036986,2]
[314004037,1707922262729,-1105.18,0.00036986,2]
[314004038,1707922262747,-500.0,0.00036986,2]
[314004039,1707922262766,-6757.65,0.00036986,2]
[314004040,1707922262777,-500.0,0.00036986,2]
[314004041,1707922262787,-2271.66,0.00036986,2]
[314004042,1707922262797,-5594.08,0.00036986,2]
[314004043,1707922262806,-4534.93,0.00036986,2]
[314004044,1707922262817,-777.68,0.00036986,2]
[314004045,1707922262827,-916.97,0.00036986,2]
[314004046,1707922262836,-4199.33,0.00036986,2]
[314004047,1707922262846,-579.44,0.00036986,2]
[314004048,1707922262855,-500.0,0.00036986,2]
[314004049,1707922262865,-564.92,0.00036986,2]
[314004050,1707922262875,-1277.79,0.00036986,2]
[314004051,1707922262884,-1829.68,0.00036986,2]
[314004052,1707922262893,-801.54,0.00036986,2]
[314004053,1707922262903,-500.0,0.00036986,2]
[314004054,1707922262912,-500.0,0.00036986,2]
[314004055,1707922262922,-691.59,0.00036986,2]
[314004056,1707922262931,-9507.23,0.00036986,2]
[314004057,1707922262941,-1545.99,0.00036986,2]
[314004058,1707922262950,-956.26,0.00036986,2]
[314004059,1707922262959,-500.0,0.00036986,2]
[314004060,1707922262970,-265.0,0.00036986,4]
[314004061,1707922262979,-100000.0,0.00037,17]
[314004062,1707922262989,-2000.0,0.00037,3]
[314004063,1707922262998,-307.40170157,0.00037,2]
[314004064,1707922263007,-4000.0,0.00037,2]
[314004065,1707922263017,-21470.52125985,0.00037011,2]
[314004066,1707922263027,-29962.25025032,0.00037011,2]
[314004067,1707922263039,-984.09642205,0.00037103,8]
[314004068,1707922263048,-4495.17936665,0.0003711,10]
[314004069,1707922263058,-1232.38876749,0.00037131,2]
[314004070,1707922263068,-150.0,0.00037135,2]
[314004071,1707922263077,-187.94189634,0.0003716,2]
[314004072,1707922263087,-150.0,0.00037193,7]
[314004073,1707922263096,-150.0,0.00037204,2]
[314004074,1707922263105,-300.0,0.0003721,2]
[314004075,1707922263115,-156.02977275,0.00037259,4]
[314004076,1707922263124,-500.0,0.0003726,2]
[314004077,1707922263134,-500.08,0.0003726,2]
[314004078,1707922263146,-500.0,0.0003726,2]
[314004079,1707922263155,-546.23,0.0003726,2]
[314004080,1707922263165,-207.31837244,0.0003726,2]
[314004081,1707922263175,-500.0,0.0003726,2]
[314004082,1707922263184,-500.0,0.0003726,2]
[314004083,1707922263193,-500.0,0.0003726,2]
[314004084,1707922263202,-500.0,0.0003726,2]
[314004085,1707922263211,-500.0,0.0003726,2]
[314004086,1707922263220,-500.0,0.0003726,2]
[314004087,1707922263229,-500.0,0.0003726,2]
[314004088,1707922263238,-558.8566278,0.0003726,2]
[314004089,1707922263247,-535.31,0.0003726,2]
[314004090,1707922263256,-500.0,0.0003726,2]
[314004091,1707922263268,-500.0,0.0003726,2]
[314004092,1707922263278,-500.0,0.0003726,2]
[314004093,1707922263291,-500.0,0.0003726,2]
[314004094,1707922263300,-258.38635019,0.0003726,2]
[314004095,1707922263309,-547.15,0.0003726,2]
[314004096,1707922263318,-561.79,0.0003726,2]
[314004097,1707922263328,-500.0,0.0003726,2]
[314004098,1707922263337,-500.0,0.0003726,2]
[314004099,1707922263346,-500.0,0.0003726,2]
[314004100,1707922263356,-500.0,0.0003726,2]
[314004101,1707922263365,-500.0,0.0003726,2]
[314004102,1707922263374,-500.0,0.0003726,2]
[314004103,1707922263384,-500.0,0.0003726,2]
[314004104,1707922263393,-500.0,0.0003726,2]
[314004105,1707922263402,-500.0,0.0003726,2]
[314004106,1707922263411,-500.0,0.0003726,2]
[314004107,1707922263421,-500.0,0.0003726,2]
[314004108,1707922263431,-500.0,0.0003726,2]
[314004109,1707922263442,-500.0,0.0003726,2]
[314004110,1707922263451,-500.0,0.0003726,2]
[314004111,1707922263461,-500.0,0.0003726,2]
[314004112,1707922263471,-500.0,0.0003726,2]
[314004113,1707922263480,-500.0,0.0003726,2]
[314004114,1707922263489,-500.0,0.0003726,2]
[314004115,1707922263499,-500.0,0.0003726,2]
[314004116,1707922263508,-500.0,0.0003726,2]
[314004117,1707922263518,-500.0,0.0003726,2]
[314004118,1707922263527,-500.0,0.0003726,2]
[314004119,1707922263538,-193.910105,0.0003726,2]
[314004120,1707922263547,-500.0,0.0003726,2]
[314004121,1707922263556,-522.41,0.0003726,2]
[314004122,1707922263565,-500.0,0.0003726,2]
[314004123,1707922263574,-500.0,0.0003726,2]
[314004124,1707922263583,-500.0,0.0003726,2]
[314004125,1707922263593,-500.0,0.0003726,2]
[314004126,1707922263602,-500.0,0.0003726,2]
[314004127,1707922263612,-500.0,0.0003726,2]
[314004128,1707922263622,-500.0,0.0003726,2]
[314004129,1707922263632,-615.62,0.0003726,2]
[314004130,1707922263642,-500.0,0.0003726,2]
[314004131,1707922263652,-523.8,0.0003726,2]
[314004132,1707922263662,-500.0,0.0003726,2]
[314004133,1707922263672,-500.0,0.0003726,2]
[314004134,1707922263681,-377.37503887,0.0003726,2]
[314004135,1707922263691,-500.0,0.0003726,2]
[314004136,1707922263702,-500.0,0.0003726,2]
[314004137,1707922263713,-500.0,0.0003726,2]
[314004138,1707922263724,-613.01,0.0003726,2]
[314004139,1707922263734,-500.0,0.0003726,2]
[314004140,1707922263743,-279.26909771,0.0003726,2]
[314004141,1707922263754,-500.0,0.0003726,2]
[314004142,1707922263764,-544.95,0.0003726,2]
[314004143,1707922263774,-500.0,0.0003726,2]
[314004144,1707922263785,-500.0,0.0003726,2]
[314004145,1707922263800,-500.0,0.0003726,2]
[314004146,1707922263810,-500.0,0.0003726,2]
[314004147,1707922263820,-773.06,0.0003726,2]
[314004148,1707922263830,-500.0,0.0003726,2]
[314004149,1707922263840,-1111.37,0.0003726,2]
[314004150,1707922263849,-500.0,0.0003726,2]
[314004151,1707922263859,-500.0,0.0003726,2]
[314004152,1707922263869,-500.0,0.0003726,2]
[314004153,1707922263879,-500.0,0.0003726,2]
[314004154,1707922263890,-3662.58,0.0003726,7]
[314004155,1707922263900,-500.0,0.0003726,2]
[314004156,1707922263909,-500.0,0.0003726,2]
[314004157,1707922263919,-671.95,0.0003726,2]
[314004158,1707922263929,-250.0,0.0003726,2]
[314004159,1707922263939,-701.24,0.0003726,2]
[314004160,1707922263949,-578.46,0.0003726,2]
[314004161,1707922263960,-500.0,0.0003726,2]
[314004162,1707922263971,-833.72,0.0003726,2]
[314004163,1707922263981,-500.0,0.0003726,2]
[314004164,1707922263992,-988.0,0.0003726,2]
[314004165,1707922264003,-500.0,0.0003726,2]
[314004166,1707922264014,-500.0,0.0003726,2]
[314004167,1707922264024,-500.0,0.0003726,2]
[314004168,1707922264034,-500.0,0.0003726,2]
[314004169,1707922264049,-809.94,0.0003726,2]
[314004170,1707922264059,-500.0,0.0003726,2]
[314004171,1707922264069,-519.68,0.0003726,2]
[314004172,1707922264079,-500.0,0.0003726,2]
[314004173,1707922264088,-918.26,0.0003726,2]
[314004174,1707922264099,-604.57,0.0003726,2]
[314004175,1707922264108,-511.63342554,0.0003726,2]
[314004176,1707922264118,-500.0,0.0003726,2]
[314004177,1707922264128,-790.69,0.0003726,2]
[314004178,1707922264139,-500.0,0.0003726,2]
[314004179,1707922264149,-549.93,0.0003726,2]
[314004180,1707922264159,-700.08,0.0003726,2]
[314004181,1707922264171,-500.0,0.0003726,2]
[314004182,1707922264181,-928.98,0.0003726,2]
[314004183,1707922264190,-811.44,0.0003726,2]
[314004184,1707922264200,-500.0,0.0003726,2]
[314004185,1707922264209,-778.18,0.0003726,2]
[314004186,1707922264218,-645.58,0.0003726,2]
[314004187,1707922264228,-500.0,0.0003726,2]
[314004188,1707922264237,-777.14,0.0003726,2]
[314004189,1707922264247,-574.95,0.0003726,2]
[314004190,1707922264257,-500.0,0.0003726,2]
[314004191,1707922264266,-601.95,0.0003726,2]
[314004192,1707922264276,-656.0,0.0003726,2]
[314004193,1707922264286,-500.0,0.0003726,2]
[314004194,1707922264300,-1207.5,0.0003726,2]
[314004195,1707922264310,-500.0,0.0003726,2]
[314004196,1707922264320,-619.39,0.0003726,2]
[314004197,1707922264330,-1111.83,0.0003726,2]
[314004198,1707922264340,-500.0,0.0003726,2]
[314004199,1707922264350,-500.0,0.0003726,2]
[314004200,1707922264360,-500.0,0.0003726,2]
[314004201,1707922264370,-956.38,0.0003726,2]
[314004202,1707922264381,-500.0,0.0003726,2]
[314004203,1707922264391,-856.66,0.0003726,2]
[314004204,1707922264401,-500.0,0.0003726,2]
[314004205,1707922264411,-500.0,0.0003726,2]
[314004206,1707922264421,-500.0,0.0003726,2]
[314004207,1707922264430,-500.0,0.0003726,2]
[314004208,1707922264439,-453.50822141,0.0003726,2]
[314004209,1707922264449,-782.65,0.0003726,2]
[314004210,1707922264459,-528.06,0.0003726,2]
[314004211,1707922264468,-635.89,0.0003726,2]
[314004212,1707922264478,-671.53,0.0003726,2]
[314004213,1707922264488,-500.0,0.0003726,2]
[314004214,1707922264498,-500.0,0.0003726,2]
[314004215,1707922264508,-500.0,0.0003726,2]
[314004216,1707922264518,-899.09,0.0003726,2]
[314004217,1707922264527,-500.0,0.0003726,2]
[314004218,1707922264540,-500.0,0.0003726,2]
[314004219,1707922264549,-963.54,0.0003726,2]
[314004220,1707922264559,-500.0,0.0003726,2]
[314004221,1707922264568,-1532.71,0.0003726,2]
[314004222,1707922264578,-500.0,0.0003726,2]
[314004223,1707922264588,-484.68505525,0.0003726,2]
[314004224,1707922264598,-500.0,0.0003726,2]
[314004225,1707922264608,-1472.32,0.0003726,2]
[314004226,1707922264618,-751.45,0.0003726,2]
[314004227,1707922264629,-500.0,0.0003726,2]
[314004228,1707922264642,-700.67,0.0003726,2]
[314004229,1707922264651,-1423.11,0.0003726,2]
[314004230,1707922264661,-1098.8,0.0003726,2]
[314004231,1707922264670,-500.0,0.0003726,2]
[314004232,1707922264681,-500.0,0.0003726,2]
[314004233,1707922264691,-778.18,0.0003726,2]
[314004234,1707922264701,-521.46,0.0003726,2]
[314004235,1707922264711,-500.0,0.0003726,2]
[314004236,1707922264721,-500.0,0.0003726,2]
[314004237,1707922264730,-500.0,0.0003726,2]
[314004238,1707922264740,-940.1,0.0003726,2]
[314004239,1707922264750,-1066.69,0.0003726,2]
[314004240,1707922264760,-550.56,0.0003726,2]
[314004241,1707922264770,-500.0,0.0003726,2]
[314004242,1707922264780,-500.0,0.0003726,2]
[314004243,1707922264793,-500.0,0.0003726,2]
[314004244,1707922264803,-621.38,0.0003726,2]
[314004245,1707922264812,-500.0,0.0003726,2]
[314004246,1707922264822,-794.55,0.0003726,2]
[314004247,1707922264833,-918.12,0.0003726,2]
[314004248,1707922264843,-500.0,0.0003726,2]
[314004249,1707922264855,-500.0,0.0003726,2]
[314004250,1707922264865,-991.59,0.0003726,2]
[314004251,1707922264875,-569.15,0.0003726,2]
[314004252,1707922264885,-500.0,0.0003726,2]
[314004253,1707922264895,-716.75,0.0003726,2]
[314004254,1707922264905,-500.0,0.0003726,2]
[314004255,1707922264915,-500.0,0.0003726,2]
[314004256,1707922264925,-535.48,0.0003726,2]
[314004257,1707922264935,-500.0,0.0003726,2]
[314004258,1707922264945,-1019.3,0.0003726,2]
[314004259,1707922264955,-1006.2,0.0003726,2]
[314004260,1707922264966,-500.0,0.0003726,2]
[314004261,1707922264976,-500.0,0.0003726,2]
[314004262,1707922264986,-648.59,0.0003726,2]
[314004263,1707922264996,-500.0,0.0003726,2]
[314004264,1707922265007,-500.0,0.0003726,2]
[314004265,1707922265017,-500.0,0.0003726,2]
[314004266,1707922265028,-500.0,0.0003726,2]
[314004267,1707922265041,-928.78,0.0003726,2]
[314004268,1707922265051,-500.0,0.0003726,2]
[314004269,1707922265061,-534.42,0.0003726,2]
[314004270,1707922265072,-500.0,0.0003726,2]
[314004271,1707922265082,-500.0,0.0003726,2]
[314004272,1707922265092,-500.0,0.0003726,2]
[314004273,1707922265102,-1580.92,0.0003726,2]
[314004274,1707922265113,-500.0,0.0003726,2]
[314004275,1707922265123,-541.27,0.0003726,2]
[314004276,1707922265133,-807.63,0.0003726,2]
[314004277,1707922265144,-565.58,0.0003726,2]
[314004278,1707922265153,-643.74,0.0003726,2]
[314004279,1707922265163,-507.18,0.0003726,2]
[314004280,1707922265173,-500.0,0.0003726,2]
[314004281,1707922265183,-500.0,0.0003726,2]
[314004282,1707922265193,-500.0,0.0003726,2]
[314004283,1707922265204,-595.09,0.0003726,2]
[314004284,1707922265214,-411.50205042,0.0003726,2]
[314004285,1707922265225,-571.31,0.0003726,2]
[314004286,1707922265235,-500.0,0.0003726,2]
[314004287,1707922265245,-561.47,0.0003726,2]
[314004288,1707922265255,-1216.14,0.0003726,2]
[314004289,1707922265265,-500.0,0.0003726,2]
[314004290,1707922265276,-839.99,0.0003726,2]
[314004291,1707922265286,-570.44,0.0003726,2]
[314004292,1707922265298,-1391.78,0.0003726,2]
[314004293,1707922265309,-500.0,0.0003726,2]
[314004294,1707922265319,-500.0,0.0003726,2]
[314004295,1707922265330,-868.59,0.0003726,2]
[314004296,1707922265340,-525.19,0.0003726,2]
[314004297,1707922265350,-1540.05,0.0003726,2]
[314004298,1707922265361,-500.0,0.0003726,2]
[314004299,1707922265371,-500.0,0.0003726,2]
[314004300,1707922265381,-500.0,0.0003726,2]
[314004301,1707922265391,-1044.21,0.0003726,2]
[314004302,1707922265401,-500.0,0.0003726,2]
[314004303,1707922265412,-500.0,0.0003726,2]
[314004304,1707922265422,-1190.03,0.0003726,2]
[314004305,1707922265432,-500.0,0.0003726,2]
[314004306,1707922265442,-820.18,0.0003726,2]
[314004307,1707922265452,-500.0,0.0003726,2]
[314004308,1707922265462,-604.18,0.0003726,2]
[314004309,1707922265472,-984.39,0.0003726,2]
[314004310,1707922265482,-500.0,0.0003726,2]
[314004311,1707922265492,-500.0,0.0003726,2]
[314004312,1707922265503,-1424.63,0.0003726,2]
[314004313,1707922265512,-934.68,0.0003726,2]
[314004314,1707922265522,-500.0,0.0003726,2]
[314004315,1707922265532,-500.0,0.0003726,2]
[314004316,1707922265544,-500.0,0.0003726,2]
[314004317,1707922265554,-500.0,0.0003726,2]
[314004318,1707922265564,-835.78,0.0003726,2]
[314004319,1707922265573,-500.0,0.0003726,2]
[314004320,1707922265583,-500.0,0.0003726,2]
[314004321,1707922265595,-500.0,0.0003726,2]
[314004322,1707922265606,-562.39,0.0003726,2]
[314004323,1707922265617,-755.67,0.0003726,2]
[314004324,1707922265627,-500.0,0.0003726,2]
[314004325,1707922265639,-500.0,0.0003726,2]
[314004326,1707922265650,-500.0,0.0003726,2]
[314004327,1707922265661,-500.0,0.0003726,2]
[314004328,1707922265671,-591.31,0.0003726,2]
[314004329,1707922265682,-1409.33,0.0003726,2]
[314004330,1707922265692,-500.0,0.0003726,2]
[314004331,1707922265703,-542.11418563,0.0003726,2]
[314004332,1707922265714,-500.0,0.0003726,2]
[314004333,1707922265725,-500.0,0.0003726,2]
[314004334,1707922265735,-839.47,0.0003726,2]
[314004335,1707922265746,-500.0,0.0003726,2]
[314004336,1707922265757,-500.0,0.0003726,2]
[314004337,1707922265767,-1224.97,0.0003726,2]
[314004338,1707922265778,-150.73415812,0.0003726,2]
[314004339,1707922265790,-500.0,0.0003726,2]
[314004340,1707922265801,-500.0,0.0003726,2]
[314004341,1707922265811,-500.0,0.0003726,2]
[314004342,1707922265822,-500.0,0.0003726,2]
[314004343,1707922265833,-500.0,0.0003726,2]
[314004344,1707922265844,-500.0,0.0003726,2]
[314004345,1707922266054,-912.62,0.0003726,2]
[314004346,1707922266066,-500.0,0.0003726,2]
[314004347,1707922266076,-500.0,0.0003726,2]
[314004348,1707922266086,-527.88,0.0003726,2]
[314004349,1707922266096,-500.0,0.0003726,2]
[314004350,1707922266105,-601.93,0.0003726,2]
[314004351,1707922266115,-500.0,0.0003726,2]
[314004352,1707922266124,-500.0,0.0003726,2]
[314004353,1707922266134,-500.0,0.0003726,2]
[314004354,1707922266144,-500.0,0.0003726,2]
[314004355,1707922266153,-500.0,0.0003726,2]
[314004356,1707922266163,-500.0,0.0003726,2]
[314004357,1707922266173,-500.0,0.0003726,2]
[314004358,1707922266183,-500.0,0.0003726,2]
[314004359,1707922266192,-500.0,0.0003726,2]
[314004360,1707922266202,-500.0,0.0003726,2]
[314004361,1707922266211,-500.0,0.0003726,2]
[314004362,1707922266221,-500.0,0.0003726,2]
[314004363,1707922266230,-500.0,0.0003726,2]
[314004364,1707922266239,-500.0,0.0003726,2]
[314004365,1707922266248,-500.0,0.0003726,2]
[314004366,1707922266257,-500.0,0.0003726,2]
[314004367,1707922266266,-500.0,0.0003726,2]
[314004368,1707922266276,-607.77,0.0003726,2]
[314004369,1707922266285,-504.61790325,0.0003726,2]
[314004370,1707922266299,-500.0,0.0003726,2]
[314004371,1707922266309,-500.0,0.0003726,2]
[314004372,1707922266321,-500.0,0.0003726,2]
[314004373,1707922266331,-500.0,0.0003726,2]
[314004374,1707922266339,-500.0,0.0003726,2]
[314004375,1707922266348,-500.0,0.0003726,2]
[314004376,1707922266358,-500.0,0.0003726,2]
[314004377,1707922266367,-678.21,0.0003726,2]
[314004378,1707922266376,-500.0,0.0003726,2]
[314004379,1707922266385,-500.0,0.0003726,2]
[314004380,1707922266394,-1429.71,0.0003726,2]
[314004381,1707922266404,-500.0,0.0003726,2]
[314004382,1707922266414,-500.0,0.0003726,2]
[314004383,1707922266424,-500.0,0.0003726,2]
[314004384,1707922266433,-500.0,0.0003726,2]
[314004385,1707922266442,-545.6,0.0003726,2]
[314004386,1707922266452,-500.0,0.0003726,2]
[314004387,1707922266461,-678.82,0.0003726,2]
[314004388,1707922266471,-500.0,0.0003726,2]
[314004389,1707922266480,-520.83813731,0.0003726,2]
[314004390,1707922266490,-579.91,0.0003726,2]
[314004391,1707922266500,-786.31,0.0003726,2]
[314004392,1707922266509,-500.0,0.0003726,2]
[314004393,1707922266519,-500.0,0.0003726,2]
[314004394,1707922266528,-500.0,0.0003726,2]
[314004395,1707922266538,-500.0,0.0003726,2]
[314004396,1707922266548,-564.07,0.0003726,2]
[314004397,1707922266557,-1284.74,0.0003726,2]
[314004398,1707922266567,-500.0,0.0003726,2]